fUSD/lending_fUSD_20260528
["ID","MTS","AMOUNT","RATE_DAILY","PERIOD"]
[423182705,1779910250000,-1000.0,0.0002,2]
[423182591,1779910250000,-500.0,0.00019726,2]
[423182660,1779910250000,-721.12765534,0.0001985,2]
[423182645,1779910250000,-1804.32185985,0.00019726,2]
[423182687,1779910250000,-157.05429665,0.0002,2]
[423182658,1779910250000,-1428.38747117,0.0001985,2]
[423182662,1779910250000,-2080.17592889,0.0001985,2]
[423182597,1779910250000,-1801.0,0.00019726,2]
[423182595,1779910250000,-500.0,0.00019726,2]
[423182599,1779910250000,-500.0,0.00019726,2]
[423182601,1779910250000,-1801.0,0.00019726,2]
[423182607,1779910250000,-500.0,0.00019726,2]
[423182605,1779910250000,-1801.0,0.00019726,2]
[423182609,1779910250000,-1801.0,0.00019726,2]
[423182603,1779910250000,-500.0,0.00019726,2]
[423182593,1779910250000,-1801.0,0.00019726,2]
[423182611,1779910250000,-500.0,0.00019726,2]
[423182613,1779910250000,-1801.0,0.00019726,2]
[423182615,1779910250000,-500.83413808,0.00019726,2]
[423182617,1779910250000,-1801.0,0.00019726,2]
[423182587,1779910250000,-500.0,0.00019726,2]
[423182623,1779910250000,-1801.0,0.00019726,2]
[423182621,1779910250000,-1801.0,0.00019726,2]
[423182643,1779910250000,-1801.0,0.00019726,2]
[423182641,1779910250000,-1801.0,0.00019726,2]
[423182639,1779910250000,-1801.0,0.00019726,2]
[423182633,1779910250000,-597.40108736,0.00019726,2]
[423182631,1779910250000,-500.0,0.00019726,2]
[423182656,1779910250000,-693.39197629,0.0001985,2]
[423182637,1779910250000,-1801.0,0.00019726,2]
[423182627,1779910250000,-1801.0,0.00019726,2]
[423182625,1779910250000,-1801.0,0.00019726,2]
[423182629,1779910250000,-1801.0,0.00019726,2]
[423182619,1779910250000,-1801.0,0.00019726,2]
[423182635,1779910250000,-1801.0,0.00019726,2]
[423182799,1779910251000,-756.0,0.00020106,2]
[423182797,1779910251000,-540.0,0.00020106,2]
[423182783,1779910251000,-676.0,0.00020106,2]
[423182789,1779910251000,-676.0,0.00020106,2]
[423182780,1779910251000,-756.0,0.00020106,2]
[423182793,1779910251000,-756.0,0.00020106,2]
[423182774,1779910251000,-756.0,0.00020106,2]
[423182778,1779910251000,-676.0,0.00020106,2]
[423182787,1779910251000,-756.0,0.00020106,2]
[423182791,1779910251000,-540.0,0.00020106,2]
[423182795,1779910251000,-676.0,0.00020106,2]
[423182776,1779910251000,-540.0,0.00020106,2]
[423182801,1779910251000,-540.0,0.00020106,2]
[423182816,1779910251000,-756.0,0.00020106,2]
[423182810,1779910251000,-676.0,0.00020106,2]
[423182805,1779910251000,-756.0,0.00020106,2]
[423182840,1779910251000,-540.0,0.00020106,2]
[423182814,1779910251000,-676.0,0.00020106,2]
[423182818,1779910251000,-676.0,0.00020106,2]
[423182808,1779910251000,-540.0,0.00020106,2]
[423182822,1779910251000,-676.0,0.00020106,2]
[423182820,1779910251000,-540.0,0.00020106,2]
[423182824,1779910251000,-676.0,0.00020106,2]
[423182826,1779910251000,-756.0,0.00020106,2]
[423182837,1779910251000,-756.0,0.00020106,2]
[423182842,1779910251000,-676.0,0.00020106,2]
[423182785,1779910251000,-540.0,0.00020106,2]
[423182803,1779910251000,-676.0,0.00020106,2]
[423182770,1779910251000,-756.0,0.00020106,2]
[423182713,1779910251000,-773.24136889,0.00020015,2]
[423182758,1779910251000,-676.0,0.00020106,2]
[423182716,1779910251000,-308.84917555,0.0002007,2]
[423182720,1779910251000,-540.0,0.00020106,2]
[423182712,1779910251000,-25160.8,0.0002,2]
[423182718,1779910251000,-756.0,0.00020106,2]
[423182733,1779910251000,-756.0,0.00020106,2]
[423182735,1779910251000,-756.0,0.00020106,2]
[423182737,1779910251000,-540.0,0.00020106,2]
[423182722,1779910251000,-540.0,0.00020106,2]
[423182739,1779910251000,-676.0,0.00020106,2]
[423182724,1779910251000,-756.0,0.00020106,2]
[423182741,1779910251000,-756.0,0.00020106,2]
[423182728,1779910251000,-756.0,0.00020106,2]
[423182726,1779910251000,-540.0,0.00020106,2]
[423182731,1779910251000,-540.0,0.00020106,2]
[423182743,1779910251000,-540.0,0.00020106,2]
[423182745,1779910251000,-500.0,0.00020106,2]
[423182747,1779910251000,-756.0,0.00020106,2]
[423182749,1779910251000,-676.0,0.00020106,2]
[423182760,1779910251000,-756.0,0.00020106,2]
[423182762,1779910251000,-540.0,0.00020106,2]
[423182751,1779910251000,-500.0,0.00020106,2]
[423182753,1779910251000,-756.0,0.00020106,2]
[423182764,1779910251000,-184.29306524,0.00020106,2]
[423182766,1779910251000,-676.0,0.00020106,2]
[423182754,1779910251000,-540.0,0.00020106,2]
[423182772,1779910251000,-676.0,0.00020106,2]
[423182768,1779910251000,-540.0,0.00020106,2]
[423182756,1779910251000,-500.0,0.00020106,2]
[423182844,1779910251000,-756.0,0.00020106,2]
[423182806,1779910251000,-676.0,0.00020106,2]
[423182849,1779910251000,-676.0,0.00020106,2]
[423182919,1779910251000,-254.66943427,0.00021,2]
[423182906,1779910251000,-238.34972725,0.000208,2]
[423182917,1779910251000,-1545.9448655,0.00021,2]
[423182920,1779910251000,-238.34972725,0.00021,2]
[423182923,1779910251000,-334.0,0.00021,2]
[423182908,1779910251000,-187.78006524,0.00020946,2]
[423182925,1779910251000,-318.0,0.00021,2]
[423182927,1779910251000,-295.0,0.00021,2]
[423182910,1779910251000,-200.0,0.00020946,2]
[423182912,1779910251000,-1536.04360648,0.00020946,2]
[423182929,1779910251000,-305.0,0.00021,2]
[423182914,1779910251000,-2236.95670847,0.00020946,2]
[423182931,1779910251000,-519.0,0.00021,2]
[423182903,1779910251000,-254.66943427,0.000208,2]
[423182935,1779910251000,-486.0,0.00021,2]
[423182942,1779910251000,-1176.0,0.00021,2]
[423182948,1779910251000,-2459.23,0.00021157,2]
[423182933,1779910251000,-206.0,0.00021,2]
[423182945,1779910251000,-286.0,0.00021,2]
[423182937,1779910251000,-301.0,0.00021,2]
[423182940,1779910251000,-275.0,0.00021,2]
[423182953,1779910251000,-254.66943427,0.000212,2]
[423182957,1779910251000,-9313.94580795,0.00021235,2]
[423182955,1779910251000,-238.34972725,0.000212,2]
[423182964,1779910251000,-254.66943427,0.000214,2]
[423182962,1779910251000,-1545.9448655,0.000214,2]
[423182960,1779910251000,-6453.0,0.00021365,2]
[423182828,1779910251000,-676.0,0.00020106,2]
[423182951,1779910251000,-1545.9448655,0.000212,2]
[423182885,1779910251000,-181.08010149,0.00020397,2]
[423182812,1779910251000,-540.0,0.00020106,2]
[423182880,1779910251000,-267.18,0.00020352,2]
[423182830,1779910251000,-540.0,0.00020106,2]
[423182832,1779910251000,-676.0,0.00020106,2]
[423182834,1779910251000,-540.0,0.00020106,2]
[423182836,1779910251000,-676.0,0.00020106,2]
[423182851,1779910251000,-756.0,0.00020106,2]
[423182855,1779910251000,-676.0,0.00020106,2]
[423182859,1779910251000,-540.0,0.00020106,2]
[423182857,1779910251000,-756.0,0.00020106,2]
[423182853,1779910251000,-540.0,0.00020106,2]
[423182899,1779910251000,-238.34972725,0.000206,2]
[423182861,1779910251000,-676.0,0.00020106,2]
[423182865,1779910251000,-542.75105378,0.00020106,2]
[423182863,1779910251000,-756.0,0.00020106,2]
[423182869,1779910251000,-771.22722382,0.00020106,2]
[423182846,1779910251000,-540.0,0.00020106,2]
[423182871,1779910251000,-500.0,0.00020106,10]
[423182887,1779910251000,-200.0,0.00020397,2]
[423182897,1779910251000,-254.66943427,0.000206,2]
[423182901,1779910251000,-1545.9448655,0.000208,2]
[423182867,1779910251000,-694.32190299,0.00020106,2]
[423182883,1779910251000,-827.7,0.00020381,2]
[423182891,1779910251000,-2157.14243826,0.00020397,2]
[423182895,1779910251000,-1545.9448655,0.000206,2]
[423182889,1779910251000,-1481.2378076,0.00020397,2]
[423182879,1779910251000,-10155.32192017,0.000203,2]
[423182877,1779910251000,-2000.0,0.000203,2]
[423182873,1779910251000,-179.55771712,0.00020106,10]
[423182875,1779910251000,-2000.0,0.00020255,2]
[423182893,1779910251000,-163.799731,0.00020432,2]
[423183048,1779910252000,-500.0,0.00022357,2]
[423183058,1779910252000,-151.0,0.00022406,2]
[423183056,1779910252000,-173.5410728,0.00022406,2]
[423183050,1779910252000,-134724.5281581,0.00022358,2]
[423183046,1779910252000,-500.0,0.00022357,2]
[423183030,1779910252000,-200.0,0.00022041,2]
[423183044,1779910252000,-827.7,0.00022353,2]
[423183040,1779910252000,-2000.0,0.000223,2]
[423183038,1779910252000,-2459.23,0.00022215,2]
[423183036,1779910252000,-973.87398506,0.0002219,2]
[423183034,1779910252000,-204.52,0.00022114,2]
[423183054,1779910252000,-151.0,0.00022406,2]
[423183042,1779910252000,-11768.9319941,0.00022335,2]
[423183052,1779910252000,-151.0,0.00022406,2]
[423183068,1779910252000,-151.0,0.00022406,2]
[423183062,1779910252000,-151.0,0.00022406,2]
[423183064,1779910252000,-151.0,0.00022406,2]
[423183069,1779910252000,-151.0,0.00022406,2]
[423183073,1779910252000,-151.0,0.00022406,2]
[423183077,1779910252000,-151.0,0.00022406,2]
[423183070,1779910252000,-151.0,0.00022406,2]
[423183079,1779910252000,-151.0,0.00022406,2]
[423183065,1779910252000,-151.0,0.00022406,2]
[423183071,1779910252000,-151.0,0.00022406,2]
[423183066,1779910252000,-245.0,0.00022406,2]
[423183075,1779910252000,-151.0,0.00022406,2]
[423183092,1779910252000,-152.0,0.00022406,2]
[423183032,1779910252000,-1651.81367706,0.00022041,2]
[423183060,1779910252000,-151.0,0.00022406,2]
[423183024,1779910252000,-300.0,0.00022,2]
[423182997,1779910252000,-334.0,0.00022,2]
[423183016,1779910252000,-275.0,0.00022,2]
[423182966,1779910252000,-238.34972725,0.000214,2]
[423182973,1779910252000,-182.287,0.00021429,2]
[423182970,1779910252000,-3469.106,0.00021429,2]
[423182975,1779910252000,-194.72792766,0.00021493,2]
[423182968,1779910252000,-2000.0,0.000214,2]
[423182977,1779910252000,-200.0,0.00021493,2]
[423182981,1779910252000,-663.71676079,0.00021493,2]
[423182979,1779910252000,-1592.87721992,0.00021493,2]
[423182983,1779910252000,-3620.0,0.00021518,2]
[423182985,1779910252000,-2459.23,0.00021686,2]
[423182987,1779910252000,-12691.57802001,0.00021694,2]
[423182989,1779910252000,-2353.29,0.00021761,2]
[423182991,1779910252000,-2900.0,0.000219,7]
[423183022,1779910252000,-160.0,0.00022,2]
[423182999,1779910252000,-318.0,0.00022,2]
[423183081,1779910252000,-151.0,0.00022406,2]
[423183002,1779910252000,-295.0,0.00022,2]
[423182995,1779910252000,-200.0,0.00021934,2]
[423183008,1779910252000,-1000.0,0.00022,5]
[423183004,1779910252000,-305.0,0.00022,2]
[423183006,1779910252000,-519.0,0.00022,2]
[423183018,1779910252000,-1176.0,0.00022,2]
[423183020,1779910252000,-286.0,0.00022,2]
[423183010,1779910252000,-206.0,0.00022,2]
[423183012,1779910252000,-486.0,0.00022,2]
[423183014,1779910252000,-301.0,0.00022,2]
[423183026,1779910252000,-1272.8,0.00022,2]
[423183028,1779910252000,-220.40406087,0.00022041,2]
[423182993,1779910252000,-5000.0,0.00021918,2]
[423183094,1779910252000,-152.0,0.00022406,2]
[423183067,1779910252000,-151.0,0.00022406,2]
[423183100,1779910252000,-152.0,0.00022406,2]
[423183142,1779910252000,-318.0,0.00023,2]
[423183155,1779910252000,-301.0,0.00023,2]
[423183159,1779910252000,-1176.0,0.00023,2]
[423183157,1779910252000,-275.0,0.00023,2]
[423183161,1779910252000,-286.0,0.00023,2]
[423183171,1779910252000,-500.0,0.00023195,2]
[423183173,1779910252000,-500.0,0.00023195,2]
[423183163,1779910252000,-4402.0,0.00023,2]
[423183179,1779910252000,-500.0,0.00023195,2]
[423183175,1779910252000,-500.0,0.00023195,2]
[423183167,1779910252000,-200.0,0.00023137,2]
[423183177,1779910252000,-500.0,0.00023195,2]
[423183169,1779910252000,-1776.30922209,0.00023137,2]
[423183165,1779910252000,-200.0,0.00023015,2]
[423183181,1779910252000,-502.21978273,0.00023195,2]
[423183184,1779910252000,-500.0,0.00023195,2]
[423183186,1779910252000,-500.0,0.00023195,2]
[423183199,1779910252000,-293.646211,0.00023208,2]
[423183190,1779910252000,-2000.0,0.000232,2]
[423183192,1779910252000,-2511.0,0.000232,2]
[423183194,1779910252000,-2000.0,0.000232,2]
[423183188,1779910252000,-500.0,0.00023195,2]
[423183196,1779910252000,-2006.0,0.000232,2]
[423183203,1779910252000,-4142.0,0.00023335,2]
[423183206,1779910252000,-558.20397708,0.00023378,2]
[423183096,1779910252000,-152.0,0.00022406,2]
[423183208,1779910252000,-2000.0,0.0002344,2]
[423183210,1779910252000,-2000.0,0.0002344,2]
[423183212,1779910252000,-2000.0,0.0002344,2]
[423183144,1779910252000,-295.0,0.00023,2]
[423183138,1779910252000,-2459.23,0.00022744,2]
[423183201,1779910252000,-2459.23,0.00023273,2]
[423183140,1779910252000,-334.0,0.00023,2]
[423183152,1779910252000,-486.0,0.00023,2]
[423183083,1779910252000,-151.0,0.00022406,2]
[423183088,1779910252000,-152.0,0.00022406,2]
[423183086,1779910252000,-152.0,0.00022406,2]
[423183090,1779910252000,-152.0,0.00022406,2]
[423183102,1779910252000,-152.0,0.00022406,2]
[423183084,1779910252000,-152.0,0.00022406,2]
[423183106,1779910252000,-152.0,0.00022406,2]
[423183104,1779910252000,-152.0,0.00022406,2]
[423183108,1779910252000,-152.0,0.00022406,2]
[423183110,1779910252000,-253.38749672,0.00022406,2]
[423183113,1779910252000,-330.0,0.00022411,4]
[423183121,1779910252000,-200.0,0.00022541,2]
[423183111,1779910252000,-157.85951554,0.00022406,2]
[423183098,1779910252000,-152.0,0.00022406,2]
[423183119,1779910252000,-2155.29,0.00022466,2]
[423183125,1779910252000,-747.80937859,0.00022588,2]
[423183148,1779910252000,-519.0,0.00023,2]
[423183146,1779910252000,-305.0,0.00023,2]
[423183136,1779910252000,-1544.0,0.00022728,2]
[423183134,1779910252000,-245.00898,0.00022726,2]
[423183131,1779910252000,-150.0,0.00022726,2]
[423183150,1779910252000,-206.0,0.00023,2]
[423183117,1779910252000,-1905.66,0.00022466,2]
[423183115,1779910252000,-1094.74,0.00022466,2]
[423183127,1779910252000,-200.0,0.0002259,2]
[423183129,1779910252000,-1712.93078311,0.0002259,2]
[423183123,1779910252000,-599.60298507,0.00022588,2]
[423183133,1779910252000,-150.0,0.00022726,2]
[423183315,1779910253000,-200.0,0.00023489,2]
[423183304,1779910253000,-151.0,0.0002347,2]
[423183301,1779910253000,-881.93281491,0.0002347,2]
[423183299,1779910253000,-1544.0,0.0002347,2]
[423183287,1779910253000,-1544.0,0.0002347,2]
[423183295,1779910253000,-1544.0,0.0002347,2]
[423183297,1779910253000,-1544.0,0.0002347,2]
[423183283,1779910253000,-1544.0,0.0002347,2]
[423183293,1779910253000,-1544.0,0.0002347,2]
[423183317,1779910253000,-152.0,0.00023502,2]
[423183285,1779910253000,-1544.0,0.0002347,2]
[423183281,1779910253000,-1544.0,0.0002347,2]
[423183323,1779910253000,-7658.0,0.00023502,2]
[423183313,1779910253000,-214.96862186,0.0002347,2]
[423183321,1779910253000,-248.48877183,0.00023502,2]
[423183310,1779910253000,-151.0,0.0002347,2]
[423183308,1779910253000,-151.0,0.0002347,2]
[423183325,1779910253000,-1544.0,0.00023539,2]
[423183332,1779910253000,-5531.0,0.000236,3]
[423183334,1779910253000,-350.0,0.00023601,2]
[423183330,1779910253000,-1092.26222106,0.00023592,10]
[423183328,1779910253000,-1544.0,0.00023539,2]
[423183337,1779910253000,-1544.0,0.00023637,2]
[423183289,1779910253000,-1544.0,0.0002347,2]
[423183345,1779910253000,-1000.0,0.00023679,2]
[423183319,1779910253000,-154.0,0.00023502,2]
[423183291,1779910253000,-1544.0,0.0002347,2]
[423183238,1779910253000,-1544.0,0.0002347,2]
[423183277,1779910253000,-1544.0,0.0002347,2]
[423183339,1779910253000,-151.0,0.00023637,2]
[423183218,1779910253000,-1544.0,0.0002347,2]
[423183223,1779910253000,-1544.0,0.0002347,2]
[423183221,1779910253000,-1544.0,0.0002347,2]
[423183216,1779910253000,-1544.0,0.0002347,2]
[423183214,1779910253000,-151.0,0.00023447,2]
[423183233,1779910253000,-1544.0,0.0002347,2]
[423183225,1779910253000,-1544.0,0.0002347,2]
[423183236,1779910253000,-1544.0,0.0002347,2]
[423183248,1779910253000,-1544.0,0.0002347,2]
[423183240,1779910253000,-1544.0,0.0002347,2]
[423183243,1779910253000,-1544.0,0.0002347,2]
[423183245,1779910253000,-1544.0,0.0002347,2]
[423183250,1779910253000,-1544.0,0.0002347,2]
[423183252,1779910253000,-1544.0,0.0002347,2]
[423183263,1779910253000,-1544.0,0.0002347,2]
[423183257,1779910253000,-1544.0,0.0002347,2]
[423183270,1779910253000,-1544.0,0.0002347,2]
[423183268,1779910253000,-1544.0,0.0002347,2]
[423183265,1779910253000,-1544.0,0.0002347,2]
[423183255,1779910253000,-1544.0,0.0002347,2]
[423183259,1779910253000,-1544.0,0.0002347,2]
[423183261,1779910253000,-1544.0,0.0002347,2]
[423183274,1779910253000,-1544.0,0.0002347,2]
[423183272,1779910253000,-1544.0,0.0002347,2]
[423183279,1779910253000,-1544.0,0.0002347,2]
[423183341,1779910253000,-151.0,0.00023637,2]
[423183306,1779910253000,-151.0,0.0002347,2]
[423183347,1779910253000,-1000.0,0.00023679,2]
[423183398,1779910253000,-2000.0,0.000241,2]
[423183396,1779910253000,-286.0,0.00024,2]
[423183399,1779910253000,-1899.48,0.00024174,2]
[423183401,1779910253000,-5531.0,0.000242,5]
[423183402,1779910253000,-1910.18787185,0.00024234,2]
[423183406,1779910253000,-215.46156935,0.0002429,7]
[423183404,1779910253000,-10781.90473319,0.0002429,7]
[423183408,1779910253000,-160.0,0.000243,7]
[423183416,1779910253000,-369.46,0.00024447,15]
[423183409,1779910253000,-208.97895572,0.000243,7]
[423183411,1779910253000,-827.7,0.00024324,2]
[423183414,1779910253000,-3746.0,0.00024447,5]
[423183417,1779910253000,-9313.94580795,0.00024572,2]
[423183434,1779910253000,-500.0,0.0002474,2]
[423183429,1779910253000,-500.0,0.0002474,2]
[423183432,1779910253000,-500.0,0.0002474,2]
[423183419,1779910253000,-350.0,0.00024618,2]
[423183424,1779910253000,-1000.0,0.00024658,2]
[423183426,1779910253000,-177.02,0.00024658,2]
[423183421,1779910253000,-228.9,0.00024658,2]
[423183423,1779910253000,-281.31,0.00024658,2]
[423183431,1779910253000,-264.34442925,0.0002474,2]
[423183428,1779910253000,-500.0,0.0002474,2]
[423183436,1779910253000,-1980.8648231,0.00024781,2]
[423183343,1779910253000,-10000.0,0.00023678,2]
[423183385,1779910253000,-305.0,0.00024,2]
[423183384,1779910253000,-295.0,0.00024,2]
[423183412,1779910253000,-1000.0,0.000244,2]
[423183382,1779910253000,-318.0,0.00024,2]
[423183387,1779910253000,-519.0,0.00024,2]
[423183351,1779910253000,-1000.0,0.00023679,2]
[423183354,1779910253000,-1000.0,0.00023679,2]
[423183356,1779910253000,-1000.0,0.00023679,2]
[423183369,1779910253000,-200.0,0.00023685,2]
[423183358,1779910253000,-1000.0,0.00023679,2]
[423183364,1779910253000,-2000.0,0.00023679,2]
[423183366,1779910253000,-2000.0,0.00023679,2]
[423183370,1779910253000,-1842.0326633,0.00023685,2]
[423183368,1779910253000,-2000.0,0.00023679,2]
[423183437,1779910253000,-350.0,0.00024795,2]
[423183360,1779910253000,-1000.0,0.00023679,2]
[423183362,1779910253000,-215.14828486,0.00023679,2]
[423183349,1779910253000,-1000.0,0.00023679,2]
[423183381,1779910253000,-334.0,0.00024,2]
[423183374,1779910253000,-350.0,0.00023864,2]
[423183380,1779910253000,-500.0,0.00024,2]
[423183377,1779910253000,-12691.57802001,0.00023895,2]
[423183394,1779910253000,-1176.0,0.00024,2]
[423183390,1779910253000,-486.0,0.00024,2]
[423183393,1779910253000,-275.0,0.00024,2]
[423183388,1779910253000,-206.0,0.00024,2]
[423183378,1779910253000,-350.0,0.00023909,2]
[423183371,1779910253000,-350.0,0.00023741,2]
[423183373,1779910253000,-2000.0,0.000238,2]
[423183376,1779910253000,-350.0,0.00023884,2]
[423183391,1779910253000,-301.0,0.00024,2]
[423183487,1779910254000,-319.25,0.00025,7]
[423183503,1779910254000,-151.0,0.00025,2]
[423183501,1779910254000,-151.0,0.00025,2]
[423183485,1779910254000,-151.0,0.00025,2]
[423183483,1779910254000,-298.54272136,0.00025,2]
[423183495,1779910254000,-1013.441333,0.00025,2]
[423183481,1779910254000,-1186.98581358,0.00025,2]
[423183497,1779910254000,-1013.441333,0.00025,2]
[423183498,1779910254000,-1013.441333,0.00025,2]
[423183479,1779910254000,-289.56855013,0.00025,2]
[423183507,1779910254000,-760.010803,0.00025,2]
[423183484,1779910254000,-151.0,0.00025,2]
[423183518,1779910254000,-1491.72735,0.00025,2]
[423183516,1779910254000,-1491.72735,0.00025,2]
[423183500,1779910254000,-1013.441333,0.00025,2]
[423183509,1779910254000,-760.010803,0.00025,2]
[423183505,1779910254000,-151.0,0.00025,2]
[423183512,1779910254000,-760.010803,0.00025,2]
[423183514,1779910254000,-1491.72735,0.00025,2]
[423183520,1779910254000,-1491.72735,0.00025,2]
[423183522,1779910254000,-231.655548,0.00025,2]
[423183524,1779910254000,-151.0,0.00025,2]
[423183526,1779910254000,-171.19,0.00025,2]
[423183528,1779910254000,-171.19,0.00025,2]
[423183530,1779910254000,-151.0,0.00025,2]
[423183541,1779910254000,-350.0,0.00025102,2]
[423183511,1779910254000,-760.010803,0.00025,2]
[423183492,1779910254000,-151.0,0.00025,2]
[423183453,1779910254000,-500.0,0.00024999,2]
[423183490,1779910254000,-151.0,0.00025,2]
[423183439,1779910254000,-255.15440699,0.000248,2]
[423183532,1779910254000,-151.0,0.00025,2]
[423183451,1779910254000,-500.0,0.00024999,2]
[423183455,1779910254000,-500.0,0.00024999,2]
[423183441,1779910254000,-3900.0,0.000249,9]
[423183448,1779910254000,-500.0,0.00024999,2]
[423183444,1779910254000,-222.392196,0.00024997,7]
[423183450,1779910254000,-500.0,0.00024999,2]
[423183442,1779910254000,-280.0,0.00024979,2]
[423183446,1779910254000,-500.0,0.00024999,2]
[423183456,1779910254000,-500.0,0.00024999,2]
[423183457,1779910254000,-500.0,0.00024999,2]
[423183458,1779910254000,-500.0,0.00024999,2]
[423183464,1779910254000,-179.23313651,0.00025,60]
[423183463,1779910254000,-250.0,0.00025,2]
[423183460,1779910254000,-591.55,0.00024999,2]
[423183461,1779910254000,-238583.93439818,0.00025,2]
[423183469,1779910254000,-330.39016287,0.00025,2]
[423183470,1779910254000,-310.2305698,0.00025,2]
[423183466,1779910254000,-325785.42437345,0.00025,2]
[423183472,1779910254000,-307.65507168,0.00025,2]
[423183467,1779910254000,-336.58968581,0.00025,2]
[423183476,1779910254000,-486.68705661,0.00025,2]
[423183474,1779910254000,-520.7267243,0.00025,2]
[423183475,1779910254000,-225.00087319,0.00025,2]
[423183478,1779910254000,-304.0,0.00025,2]
[423183489,1779910254000,-151.0,0.00025,2]
[423183493,1779910254000,-151.0,0.00025,2]
[423183536,1779910254000,-501.0,0.00025082,2]
[423183543,1779910254000,-160.0,0.000252,3]
[423183539,1779910254000,-369.0,0.00025088,2]
[423183610,1779910254000,-302.57,0.000265,2]
[423183606,1779910254000,-827.7,0.00026296,2]
[423183612,1779910254000,-500.0,0.000265,2]
[423183614,1779910254000,-12417.34133653,0.00026501,2]
[423183616,1779910254000,-204.52,0.00026553,2]
[423183618,1779910254000,-472.7,0.00026583,2]
[423183624,1779910254000,-472.7,0.00026783,2]
[423183628,1779910254000,-309.0,0.000268,2]
[423183622,1779910254000,-959.0,0.000267,7]
[423183619,1779910254000,-12417.34133653,0.00026672,2]
[423183632,1779910254000,-500.0,0.0002698,2]
[423183626,1779910254000,-315.0,0.000268,2]
[423183635,1779910254000,-250.0,0.00027,2]
[423183634,1779910254000,-472.7,0.00026983,2]
[423183637,1779910254000,-250.0,0.00027,2]
[423183639,1779910254000,-319.25,0.00027,7]
[423183642,1779910254000,-501.0,0.00027009,4]
[423183646,1779910254000,-558.20397708,0.00027351,2]
[423183644,1779910254000,-472.72857126,0.00027184,2]
[423183648,1779910254000,-151.0,0.00027397,2]
[423183657,1779910254000,-760.010803,0.00027397,2]
[423183650,1779910254000,-151.0,0.00027397,2]
[423183659,1779910254000,-760.010803,0.00027397,2]
[423183654,1779910254000,-760.010803,0.00027397,2]
[423183652,1779910254000,-151.0,0.00027397,2]
[423183655,1779910254000,-760.010803,0.00027397,2]
[423183534,1779910254000,-3340.90776209,0.00025058,2]
[423183608,1779910254000,-472.7,0.00026382,2]
[423183604,1779910254000,-500.0,0.00026194,2]
[423183630,1779910254000,-177.02,0.00026829,7]
[423183592,1779910254000,-319.25,0.00026,7]
[423183602,1779910254000,-472.7,0.00026182,2]
[423183556,1779910254000,-12417.34133653,0.00025449,2]
[423183558,1779910254000,-3340.90776209,0.00025565,2]
[423183560,1779910254000,-350.0,0.00025576,2]
[423183564,1779910254000,-2000.0,0.000256,2]
[423183549,1779910254000,-621.78829552,0.00025328,2]
[423183562,1779910254000,-350.0,0.00025589,2]
[423183547,1779910254000,-3340.90776209,0.00025284,2]
[423183566,1779910254000,-350.0,0.00025608,2]
[423183553,1779910254000,-2054.15682156,0.00025329,2]